bitfinex/quotes_SOLUSD_20250306
["timestamp","ask_amount","ask_price","bid_price","bid_amount"]
[1741284421123,29.04286236,144.3,144.27,219.77516157]
[1741284421339,29.07286236,144.31,144.27,219.77516157]
[1741284421639,29.04286236,144.3,144.27,219.77516157]
[1741284421839,29.04286236,144.3,144.27,226.70656157]
[1741284422030,0.03,144.31,144.29,0.14216157]
[1741284422231,29.07286236,144.31,144.29,0.14216157]
[1741284422423,29.07286236,144.31,144.27,219.633]
[1741284422627,29.04286236,144.3,144.28,0.14216157]
[1741284422830,0.03,144.31,144.3,0.14216157]
[1741284423033,0.03,144.31,144.3,219.77516157]
[1741284423623,0.03,144.31,144.3,531.77516157]
[1741284423820,29.07286236,144.31,144.3,531.77516157]
[1741284425029,0.03,144.31,144.3,531.77516157]
[1741284425244,0.03,144.31,144.3,557.63913357]
[1741284425420,0.03,144.31,144.3,550.70913357]
[1741284425625,0.03,144.31,144.3,531.77516157]
[1741284425950,0.03,144.31,144.3,245.63913357]
[1741284426447,0.03,144.31,144.3,219.77516157]
[1741284427030,29.07286236,144.31,144.3,219.77516157]
[1741284427748,29.07286236,144.31,144.3,81.97516157]
[1741284428043,36.00236236,144.31,144.3,81.833]
[1741284428247,36.00236236,144.31,144.27,219.633]
[1741284428544,6.9595,144.31,144.28,0.14216157]
[1741284429536,6.9595,144.31,144.27,393.833]
[1741284429537,29.04286236,144.29,144.27,81.833]
[1741284429842,29.04286236,144.28,144.27,81.833]
[1741284430047,29.04286236,144.28,144.25,81.833]
[1741284430232,0.03,144.31,144.26,0.14216157]
[1741284430433,29.04286236,144.27,144.26,0.14216157]
[1741284431036,0.03,144.31,144.26,0.14216157]
[1741284431235,29.04286236,144.27,144.26,0.14216157]
[1741284431651,65.01712472,144.27,144.26,0.14216157]
[1741284432039,65.01712472,144.27,144.23,219.633]
[1741284432227,29.04286236,144.24,144.23,81.833]
[1741284433050,29.04286236,144.24,144.23,81.97516157]
[1741284433245,29.04286236,144.24,144.23,0.14216157]
[1741284433947,29.04286236,144.25,144.24,0.14216157]
[1741284434142,29.04286236,144.25,144.24,81.97516157]
[1741284434947,8.0126,144.3,144.24,81.97516157]
[1741284435247,29.04286236,144.29,144.26,0.14216157]
[1741284435427,29.04286236,144.29,144.26,7.44216157]
[1741284435628,29.04286236,144.29,144.28,0.14216157]
[1741284435955,29.04286236,144.29,144.28,81.97516157]
[1741284436252,35.97326236,144.29,144.28,81.833]
[1741284436626,35.97326236,144.29,144.28,81.97516157]
[1741284436832,29.04286236,144.29,144.28,81.97516157]
[1741284437027,6.9302,144.3,144.28,81.97516157]
[1741284437250,29.04286236,144.29,144.28,81.97516157]
[1741284437757,6.9309,144.28,144.22,89.133]
[1741284438048,29.04286236,144.23,144.22,81.833]
[1741284438432,29.04286236,144.23,144.22,81.97516157]
[1741284438827,29.04286236,144.23,144.22,81.833]
[1741284439041,29.04286236,144.23,144.22,81.97516157]
[1741284439245,29.04286236,144.23,144.22,81.866]
[1741284439548,29.04286236,144.23,144.22,82.00816157]
[1741284439928,35.10066236,144.27,144.22,82.00816157]
[1741284439929,29.04286236,144.24,144.22,82.00816157]
[1741284440128,6.5942,144.31,144.23,0.14216157]
[1741284440334,13.5238,144.31,144.23,219.77516157]
[1741284440545,13.5238,144.31,144.26,0.14216157]
[1741284440546,29.04286236,144.27,144.26,0.14216157]
[1741284440852,29.04286236,144.27,144.26,81.97516157]
[1741284442545,25.14906418,144.27,144.26,81.97516157]
[1741284442742,25.14906418,144.27,144.26,81.833]
[1741284443231,43.36672836,144.27,144.26,81.833]
[1741284445155,43.36672836,144.27,144.22,0.033]
[1741284445332,18.21766418,144.23,144.22,0.17516157]
[1741284445536,18.21766418,144.23,144.22,0.033]
[1741284446051,25.15096418,144.23,144.22,0.033]
[1741284446241,18.21766418,144.23,144.22,0.033]
[1741284446559,29.16505207,144.23,144.22,0.033]
[1741284446764,36.09835207,144.23,144.22,0.033]
[1741284447245,29.16505207,144.23,144.22,0.033]
[1741284447630,29.16505207,144.23,144.19,81.866]
[1741284447631,58.33010414,144.23,144.19,0.033]
[1741284447866,58.33010414,144.2,144.19,0.033]
[1741284448158,65.26490414,144.2,144.19,0.033]
[1741284452936,29.16505207,144.05,144.04,393.432]
[1741284453135,29.16505207,144.05,144.04,393.57416157]
[1741284453451,29.16505207,144.05,144.04,81.57416157]
[1741284453655,29.16505207,144.05,144.04,81.432]
[1741284454350,6.9402,144.09,144.04,0.033]
[1741284454552,29.16505207,144.05,144.04,0.033]
[1741284455561,36.10705207,144.05,144.04,0.033]
[1741284455733,29.16505207,144.05,144.04,0.033]
[1741284458035,36.10705207,144.05,144.04,0.033]
[1741284460168,55.04102407,144.05,144.04,0.033]
[1741284460542,36.10705207,144.05,144.04,0.033]
[1741284461267,29.16505207,144.05,144.04,0.033]
[1741284464267,29.19505207,144.05,144.04,0.033]
[1741284467675,36.13705207,144.05,144.04,0.033]
[1741284467854,29.19505207,144.05,144.04,0.033]
[1741284468361,36.13705207,144.05,144.04,0.033]
[1741284468560,25.25265995,144.05,144.04,0.033]
[1741284469053,44.18663195,144.05,144.04,0.033]
[1741284469260,52.04723195,144.05,144.04,0.033]
[1741284469470,60.37036152,144.05,144.04,0.033]
[1741284470978,41.43638952,144.05,144.04,0.033]
[1741284471159,18.28065995,144.04,144.03,0.033]
[1741284473072,25.22315995,144.04,144.03,0.033]
[1741284474471,18.28065995,144.04,144.03,0.033]
[1741284476574,25.22315995,144.04,144.03,0.033]
[1741284476758,18.28065995,144.04,144.03,0.033]
[1741284480658,0.03,144.05,144.03,0.033]
[1741284480659,18.31065995,144.05,144.03,0.033]
[1741284480882,18.28065995,144.04,144.03,0.033]
[1741284481060,0.03,144.05,144.04,0.14216157]
[1741284481269,0.03,144.05,144.04,7.08466157]
[1741284481674,18.31065995,144.05,144.04,0.14216157]
[1741284482906,18.31065995,144.05,144.03,0.033]
[1741284483098,18.28065995,144.04,144.03,0.033]
[1741284483981,25.22315995,144.04,144.03,0.033]
[1741284486573,26.24628952,144.04,144.03,0.033]
[1741284486762,45.18026152,144.04,144.03,0.033]
[1741284486955,20.0,144.02,144.01,0.033]
[1741284487268,38.28065995,144.02,144.01,0.033]
[1741284487471,18.28065995,144.03,144.01,0.033]
[1741284487783,18.28065995,144.02,144.01,0.033]
[1741284488584,18.28065995,144.03,144.01,0.033]
[1741284489491,0.03,144.05,144.04,0.14216157]
[1741284490481,0.03,144.05,144.04,312.14216157]
[1741284490988,18.31065995,144.05,144.04,0.14216157]
[1741284491368,0.03,144.05,144.04,0.14216157]
[1741284491575,18.31065995,144.05,144.04,0.14216157]
[1741284492059,25.25265995,144.05,144.04,0.14216157]
[1741284492897,25.25265995,144.05,144.02,0.14216157]
[1741284493188,18.28065995,144.03,144.02,0.14216157]
[1741284493485,0.03,144.05,144.02,0.14216157]
[1741284493662,18.31065995,144.05,144.02,0.14216157]
[1741284493865,18.31065995,144.05,144.02,319.08546157]
[1741284494588,0.03,144.05,144.02,319.08536157]
[1741284494765,0.03,144.05,144.04,0.14216157]
[1741284495088,0.03,144.05,144.04,219.34116157]
[1741284495865,0.03,144.05,144.04,226.28366157]
[1741284496969,0.03,144.05,144.04,263.49829352]
[1741284497795,0.03,144.05,144.04,575.49829352]
[1741284498794,0.03,144.05,144.04,557.21763357]
[1741284499092,0.03,144.05,144.04,575.49829352]
[1741284500092,0.03,144.05,144.04,575.49829352]
[1741284500980,0.03,144.05,144.04,556.84864466]
[1741284501188,0.03,144.05,144.04,81.399]
[1741284501570,0.03,144.05,144.04,81.54116157]
[1741284501967,0.03,144.05,144.04,88.48366157]
[1741284502186,0.03,144.05,144.04,88.3415]
[1741284502586,0.03,144.05,144.04,88.48366157]
[1741284503181,0.03,144.05,144.04,108.87510791]
[1741284503381,0.03,144.05,144.04,264.95576786]
[1741284503589,0.03,144.05,144.04,263.49829352]
[1741284504299,0.03,144.05,144.04,575.49829352]
[1741284504667,0.03,144.05,144.04,538.28366157]
[1741284504889,0.03,144.05,144.04,538.1415]
[1741284505199,0.03,144.05,144.04,538.28366157]
[1741284506176,0.0001,144.05,144.04,575.49829352]
[1741284506375,0.0001,144.05,144.04,557.21763357]
[1741284506676,0.0001,144.05,144.04,575.49829352]
[1741284507285,0.0001,144.05,144.04,557.21763357]
[1741284507580,0.0001,144.05,144.04,538.28366157]
[1741284510021,0.0001,144.05,144.04,575.49829352]
[1741284510506,0.0001,144.05,144.04,538.28366157]
[1741284510685,0.0001,144.05,144.04,575.49829352]
[1741284513183,18.28065995,144.14,144.08,20.14216157]
[1741284513512,18.28065995,144.14,144.1,0.14216157]
[1741284513692,18.28065995,144.14,144.1,81.54116157]
[1741284514205,18.28065995,144.14,144.12,0.14216157]
[1741284514404,18.28065995,144.16,144.12,0.14216157]
[1741284515012,18.28065995,144.15,144.12,0.14216157]
[1741284515385,18.28065995,144.15,144.11,0.14216157]
[1741284515589,18.28065995,144.14,144.11,0.14216157]
[1741284516310,18.28065995,144.15,144.11,7.08116157]
[1741284516613,18.28065995,144.12,144.11,0.14216157]
[1741284516913,18.28065995,144.13,144.11,0.14216157]
[1741284517109,18.28065995,144.13,144.11,81.54116157]
[1741284517310,18.28065995,144.12,144.11,81.54116157]
[1741284517506,18.28065995,144.12,144.11,0.14216157]
[1741284517713,18.28065995,144.12,144.06,219.199]
[1741284517919,18.28065995,144.08,144.06,219.199]
[1741284518095,18.28065995,144.07,144.03,219.232]
[1741284518411,18.28065995,144.06,144.04,0.14216157]
[1741284518710,18.28065995,144.07,144.03,81.432]
[1741284520810,6.9397,144.1,144.06,0.14216157]
[1741284520998,18.28065995,144.09,144.06,0.14216157]
[1741284521926,18.28065995,144.09,144.04,219.199]
[1741284522092,6.9397,144.1,144.05,0.14216157]
[1741284522293,18.28065995,144.08,144.05,0.14216157]
[1741284522525,25.22125995,144.08,144.05,81.54116157]
[1741284522811,18.28065995,144.07,144.05,81.54116157]
[1741284523025,18.28065995,144.06,144.05,81.399]
[1741284523320,18.28065995,144.06,144.04,0.14216157]
[1741284523524,18.28065995,144.05,144.04,0.14216157]
[1741284524295,18.28065995,144.06,144.04,0.14216157]
[1741284524703,25.22195995,144.07,144.04,0.14216157]
[1741284524903,18.28065995,144.08,144.04,7.08456157]
[1741284525303,18.28065995,144.07,144.04,0.14216157]
[1741284526493,18.28065995,144.07,144.04,7.08456157]
[1741284526692,18.28065995,144.07,144.04,0.14216157]
[1741284526893,18.28065995,144.08,144.04,7.08456157]
[1741284527302,18.28065995,144.08,144.04,0.14216157]
[1741284527487,18.28065995,144.07,144.04,0.14216157]
[1741284527687,18.28065995,144.08,144.04,0.14216157]
[1741284527895,18.28065995,144.08,144.04,312.14216157]
[1741284528408,18.28065995,144.08,144.04,400.48356157]
[1741284528731,18.28065995,144.07,144.04,393.54116157]
[1741284529091,18.28065995,144.06,144.04,393.54116157]
[1741284529326,18.28065995,144.06,144.04,81.54116157]
[1741284530230,18.28065995,144.05,144.03,0.033]
[1741284530401,18.28065995,144.06,144.03,0.033]
[1741284530596,18.28065995,144.05,144.03,0.033]
[1741284530816,18.28065995,144.04,144.03,0.033]
[1741284531133,18.28065995,144.05,144.03,0.17516157]
[1741284532325,18.28065995,144.07,144.03,7.11796157]
[1741284532503,18.28065995,144.07,144.03,88.51696157]
[1741284532895,18.28065995,144.08,144.03,88.51696157]
[1741284533111,18.28065995,144.07,144.03,88.51696157]
[1741284533303,18.28065995,144.08,144.03,88.51696157]
[1741284533516,18.31065995,144.1,144.04,18.28065995]
[1741284533710,0.03,144.1,144.05,0.14216157]
[1741284533915,0.03,144.1,144.07,0.14216157]
[1741284534107,0.03,144.1,144.07,244.90182152]
[1741284534505,0.03,144.1,144.09,0.14216157]
[1741284535807,0.03,144.1,144.09,319.08226157]
[1741284537393,0.03,144.1,144.09,400.48126157]
[1741284537834,0.03,144.1,144.09,393.54116157]
[1741284538812,18.31065995,144.1,144.09,393.54116157]
[1741284539400,18.31065995,144.1,144.09,81.54116157]
[1741284540402,25.25025995,144.1,144.09,81.54116157]
[1741284540821,0.03,144.1,144.09,81.54116157]
[1741284541125,0.03,144.1,144.09,88.48126157]
[1741284541803,0.0001,144.1,144.09,263.49589352]
[1741284542006,0.0001,144.1,144.09,268.85469352]
[1741284542310,0.0001,144.1,144.09,580.85469352]
[1741284542513,0.0001,144.1,144.09,575.49589352]
[1741284543015,0.0001,144.1,144.09,556.56192152]
[1741284543219,0.0001,144.1,144.09,538.28126157]
[1741284543522,0.0001,144.1,144.09,556.56192152]
[1741284544328,0.0001,144.1,144.09,538.28126157]
[1741284544505,0.0001,144.1,144.09,556.56192152]
[1741284545328,0.0001,144.1,144.09,538.28126157]
[1741284545506,0.0001,144.1,144.09,556.56192152]
[1741284548219,0.0001,144.1,144.09,244.56192152]
[1741284548611,0.0001,144.1,144.09,263.49589352]
[1741284551125,0.0001,144.1,144.09,575.49589352]
[1741284551411,0.0001,144.1,144.09,582.75589352]
[1741284552332,0.0001,144.1,144.09,556.78874886]
[1741284552520,0.0001,144.1,144.09,563.67975995]
[1741284552723,0.0001,144.1,144.09,545.3991]
[1741284552922,0.0001,144.1,144.09,407.5991]
[1741284553315,0.0001,144.1,144.09,426.02192152]
[1741284553523,0.0001,144.1,144.09,425.87975995]
[1741284553842,0.0001,144.1,144.09,114.02192152]
[1741284554138,0.0001,144.1,144.09,95.74126157]
[1741284555022,0.0001,144.1,144.09,114.02192152]
[1741284555619,0.0001,144.1,144.09,132.95589352]
[1741284555921,0.0001,144.1,144.09,270.75589352]
[1741284556919,0.0001,144.1,144.09,582.75589352]
[1741284557339,0.0001,144.1,144.09,270.75589352]
[1741284558141,0.0001,144.1,144.09,233.54126157]
[1741284558539,0.0001,144.1,144.09,251.82192152]
[1741284559411,0.0001,144.1,144.09,270.75589352]
[1741284560336,0.0001,144.1,144.09,582.75589352]
[1741284560517,0.0001,144.1,144.09,582.78889352]
[1741284560719,18.28075995,144.1,144.09,0.033]
[1741284561036,0.0001,144.1,144.09,0.033]
[1741284562123,0.0001,144.1,144.09,239.39618368]
[1741284562334,0.0001,144.1,144.09,237.93914466]
[1741284562813,0.0001,144.1,144.09,256.58879352]
[1741284563016,0.0001,144.1,144.09,219.37416157]
[1741284563435,0.0001,144.1,144.09,81.432]
[1741284563950,0.0001,144.1,144.09,99.85482152]
[1741284564134,0.0001,144.1,144.09,246.33626883]
[1741284564318,0.0001,144.1,144.09,244.87924466]
[1741284564520,0.0001,144.1,144.09,219.37416157]
[1741284565035,0.0001,144.1,144.09,244.59492152]
[1741284565353,0.0001,144.1,144.09,81.57416157]
[1741284566016,0.0001,144.1,144.09,88.51426157]
[1741284566413,0.0001,144.1,144.09,244.59492152]
[1741284566613,0.0001,144.1,144.09,263.52889352]
[1741284567226,0.0001,144.1,144.09,575.52889352]
[1741284570349,0.0001,144.1,144.09,575.10240881]
[1741284570550,0.0001,144.1,144.09,575.38673195]
[1741284570746,0.0001,144.1,144.09,556.45275995]
[1741284571162,0.0001,144.1,144.09,219.232]
[1741284571455,0.0001,144.1,144.09,81.432]
[1741284571752,0.0001,144.1,144.09,81.57416157]
[1741284573050,0.0001,144.1,144.09,88.51426157]
[1741284574151,0.0001,144.1,144.09,400.51426157]
[1741284575236,0.0001,144.1,144.09,226.59858471]
[1741284575444,0.0001,144.1,144.09,263.52889352]
[1741284576359,0.0001,144.1,144.09,268.88769352]
[1741284576733,0.03,144.2,144.13,20.14216157]
[1741284577054,0.03,144.2,144.18,0.14216157]
[1741284577355,0.03,144.2,144.18,219.34116157]
[1741284577855,0.03,144.2,144.19,0.14216157]
[1741284578557,0.03,144.2,144.19,312.14216157]
[1741284579055,18.31065995,144.2,144.19,0.14216157]
[1741284579942,0.03,144.2,144.19,0.14216157]
[1741284580346,0.03,144.2,144.19,7.07736157]
[1741284581236,0.03,144.2,144.19,0.14216157]
[1741284581953,18.31065995,144.2,144.19,0.14216157]
[1741284583350,18.31065995,144.2,144.15,81.399]
[1741284583546,18.28065995,144.19,144.16,0.14216157]
[1741284583949,18.31065995,144.2,144.16,7.07886157]
[1741284584259,0.03,144.2,144.16,7.07886157]
[1741284584957,25.24545995,144.2,144.16,0.14216157]
[1741284585342,18.28065995,144.19,144.16,0.14216157]
[1741284585959,25.21595995,144.19,144.16,0.14216157]
[1741284586346,18.28065995,144.17,144.13,81.399]
[1741284586547,18.28065995,144.16,144.13,81.399]
[1741284586753,6.9353,144.19,144.14,0.14216157]
[1741284586955,18.28065995,144.18,144.14,0.14216157]
[1741284587647,18.28065995,144.18,144.14,219.34116157]
[1741284587848,18.28065995,144.17,144.14,219.34116157]
[1741284588066,25.21725995,144.17,144.14,219.34116157]
[1741284588564,6.9366,144.17,144.14,219.34116157]
[1741284588866,25.21655995,144.18,144.14,219.34116157]
[1741284589168,25.21655995,144.18,144.14,531.34116157]
[1741284590160,25.21655995,144.18,144.14,219.34116157]
[1741284590474,18.28065995,144.16,144.14,219.34116157]
[1741284590660,18.28065995,144.16,144.14,81.54116157]
[1741284591870,18.28065995,144.17,144.14,81.54116157]
[1741284592267,25.21685995,144.17,144.14,81.54116157]
[1741284592652,18.28065995,144.16,144.14,81.54116157]
[1741284593868,42.55745995,144.17,144.14,81.54116157]
[1741284594250,18.28065995,144.16,144.14,81.54116157]
[1741284594658,42.55745995,144.17,144.14,81.54116157]
[1741284595143,25.21685995,144.17,144.14,81.54116157]
[1741284595347,25.24685995,144.17,144.14,81.54116157]
[1741284595855,18.28065995,144.16,144.14,81.54116157]
[1741284596053,18.28065995,144.15,144.14,81.54116157]
[1741284596263,25.21785995,144.15,144.14,81.54116157]
[1741284596462,25.21785995,144.15,144.11,0.14216157]
[1741284596663,18.28065995,144.13,144.1,81.399]
[1741284596969,24.48745995,144.14,144.11,0.14216157]
[1741284597171,6.2068,144.14,144.1,81.399]
[1741284597545,6.2068,144.14,144.11,0.14216157]
[1741284597767,18.28065995,144.13,144.1,81.399]
[1741284597952,18.28065995,144.13,144.11,0.14216157]
[1741284598156,25.21895995,144.13,144.11,0.14216157]
[1741284598359,18.28065995,144.12,144.11,0.14216157]
[1741284598559,18.28065995,144.12,144.09,0.033]
[1741284598764,18.28065995,144.1,144.09,0.17516157]
[1741284598959,18.28065995,144.11,144.09,0.17516157]
[1741284599160,18.28065995,144.1,144.09,0.17516157]
[1741284599374,18.28065995,144.11,144.09,0.17516157]
[1741284599572,18.28065995,144.1,144.09,0.17516157]
[1741284599884,18.28065995,144.1,144.09,0.033]
[1741284600064,6.9383,144.13,144.09,0.033]
[1741284600263,6.2068,144.14,144.1,0.14216157]
[1741284600565,6.2068,144.14,144.1,219.34116157]
[1741284600760,18.28065995,144.13,144.1,219.34116157]
[1741284601075,18.28065995,144.11,144.1,81.54116157]
[1741284601954,18.28065995,144.11,144.09,0.033]
[1741284602165,25.22025995,144.1,144.09,0.033]
[1741284602357,26.87475995,144.1,144.09,0.033]
[1741284603470,27.89788952,144.1,144.09,0.033]
[1741284603654,34.15698952,144.1,144.09,0.033]
[1741284603854,39.76175694,144.1,144.09,0.033]
[1741284604150,34.15698952,144.1,144.09,0.033]
[1741284604672,33.13385995,144.1,144.09,0.033]
[1741284604851,26.19425995,144.1,144.09,0.033]
[1741284605270,33.13385995,144.1,144.09,0.033]
[1741284605576,53.09096152,144.1,144.09,0.033]
[1741284605774,20.0,144.07,144.03,0.17516157]
[1741284606159,18.28065995,144.05,144.03,0.17516157]
[1741284606365,96.8532,144.1,144.03,7.11806157]
[1741284606561,96.8532,144.1,144.03,88.51706157]
[1741284606562,7.9136,144.1,144.03,88.51706157]
[1741284606764,18.28065995,144.12,144.06,18.42282152]
[1741284607073,18.28065995,144.1,144.06,219.34116157]
[1741284607279,18.28065995,144.13,144.09,0.033]
[1741284607469,1.02312957,144.12,144.09,0.033]
[1741284607668,19.67277843,144.12,144.09,0.033]
[1741284607875,18.933972,144.11,144.09,0.033]
[1741284608070,18.28065995,144.1,144.09,0.033]
[1741284608266,26.24338952,144.1,144.09,0.033]
[1741284608579,45.17736152,144.1,144.09,0.033]
[1741284608874,51.40676152,144.1,144.09,0.033]
[1741284609576,31.44965995,144.1,144.09,0.033]
[1741284609780,18.28065995,144.11,144.09,0.033]
[1741284609962,6.9384,144.13,144.09,0.033]
[1741284610164,18.28065995,144.13,144.09,0.033]
[1741284610371,18.28065995,144.13,144.1,0.14216157]
[1741284610758,18.28065995,144.11,144.1,0.14216157]
[1741284610978,18.28065995,144.11,144.09,0.033]
[1741284611191,18.28065995,144.1,144.09,0.033]
[1741284611360,26.24198952,144.13,144.09,0.033]
[1741284611564,18.28065995,144.1,144.09,0.033]
[1741284612383,25.22025995,144.1,144.09,0.033]
[1741284613964,44.15423195,144.1,144.09,0.033]
[1741284614163,8.2626,144.07,144.03,0.033]
[1741284614469,18.28065995,144.04,144.03,0.17516157]
[1741284615761,18.28065995,144.04,144.03,0.033]
[1741284616470,25.22315995,144.04,144.03,0.033]
[1741284616783,18.28065995,144.04,144.03,0.033]
[1741284617999,19.30378952,144.04,144.03,0.033]
[1741284618364,45.18026152,144.04,144.03,0.033]
[1741284618991,144.53646152,144.04,143.99,0.033]
[1741284619183,18.28065995,144.0,143.99,0.033]
[1741284620496,25.22505995,144.0,143.99,0.033]
[1741284622786,18.28065995,144.0,143.99,0.033]
[1741284623127,6.6237,144.07,144.0,19.07613357]
[1741284623421,24.90435995,144.07,144.02,0.14216157]
[1741284623622,18.28065995,144.06,144.02,312.0]
[1741284623913,18.28065995,144.04,144.03,0.14216157]
[1741284624094,18.28065995,144.05,144.03,0.14216157]
[1741284625184,18.28065995,144.04,144.03,0.14216157]
[1741284625702,18.28065995,144.04,144.01,0.14216157]
[1741284625902,18.28065995,144.03,144.01,0.14216157]
[1741284626723,6.9417,144.06,144.01,0.14216157]
[1741284626899,18.28065995,144.02,144.01,0.14216157]
[1741284627085,1.6596,144.05,144.01,0.14216157]
[1741284627086,18.28065995,144.03,144.01,0.14216157]
[1741284628204,18.28065995,144.02,144.01,0.14216157]
[1741284628501,18.28065995,144.02,143.99,0.033]
[1741284628709,18.28065995,144.0,143.99,0.033]
[1741284629903,25.22505995,144.0,143.99,0.033]
[1741284630304,26.24818952,144.0,143.99,0.033]
[1741284631014,26.24818952,144.0,143.94,0.033]
[1741284631015,100.933972,143.99,143.94,0.033]
[1741284631228,100.933972,143.99,143.89,0.033]
[1741284631229,36.5613199,143.92,143.89,0.033]
[1741284631419,18.28065995,143.9,143.89,0.17516157]
[1741284631719,18.28065995,143.9,143.89,0.033]
[1741284632499,6.9468,143.95,143.89,0.17516157]
[1741284632812,18.28065995,143.92,143.89,0.17516157]
[1741284632991,7.96992957,143.95,143.89,0.17516157]
[1741284632992,18.28065995,143.91,143.89,0.17516157]
[1741284633409,7.96992957,143.95,143.89,0.17516157]
[1741284633410,18.28065995,143.92,143.89,0.17516157]
[1741284634495,29.28630991,143.91,143.89,0.17516157]
[1741284634893,29.28630991,143.92,143.89,0.17516157]
[1741284635520,7.97002957,143.95,143.89,0.17516157]
[1741284635521,29.28630991,143.91,143.89,0.17516157]
[1741284635818,29.28630991,143.9,143.89,0.033]
[1741284637205,36.23550991,143.9,143.89,0.033]
[1741284637514,7.86,143.89,143.85,1.8671596]
[1741284637714,29.28630991,143.86,143.85,1.8671596]
[1741284638516,29.28630991,143.87,143.86,0.14216157]
[1741284640015,7.24,143.92,143.86,7.09296157]
[1741284640316,29.28630991,143.9,143.86,400.49196157]
[1741284640699,6.3019,143.93,143.86,393.54116157]
[1741284640700,29.28630991,143.89,143.86,393.54116157]
[1741284641015,29.28630991,143.87,143.85,1.8671596]
[1741284641214,29.28630991,143.86,143.85,1.8671596]
[1741284642520,82.0,143.9,143.86,0.14216157]
[1741284642818,29.28630991,143.87,143.86,0.17516157]
[1741284644304,36.23700991,143.87,143.86,0.17516157]
[1741284644798,29.28630991,143.87,143.86,0.17516157]
[1741284645200,1.05312957,143.91,143.86,0.17516157]
[1741284645520,29.28630991,143.9,143.86,0.17516157]
[1741284646022,29.28630991,143.89,143.86,0.17516157]
[1741284646517,29.28630991,143.88,143.86,0.17516157]
[1741284646718,29.28630991,143.87,143.86,0.17516157]
[1741284646916,29.28630991,143.88,143.86,0.17516157]
[1741284647918,29.28630991,143.89,143.86,0.17516157]
[1741284648417,29.31630991,143.91,143.86,400.52526157]
[1741284648619,0.03,143.91,143.86,429.81157148]
[1741284649121,0.03,143.91,143.86,117.81157148]
[1741284649511,0.03,143.91,143.86,81.57416157]
[1741284649708,29.28630991,143.88,143.86,81.57416157]
[1741284649911,29.28630991,143.89,143.86,81.57416157]
[1741284650117,29.31630991,143.91,143.86,88.52516157]
[1741284650710,36.26520991,143.91,143.86,88.52516157]
[1741284651109,29.28630991,143.89,143.86,81.57416157]
[1741284651319,29.28630991,143.88,143.86,81.57416157]
[1741284651922,29.28630991,143.88,143.86,0.17516157]
[1741284652115,29.28630991,143.87,143.86,0.033]
[1741284652303,29.28630991,143.87,143.86,0.17516157]
[1741284652504,29.28630991,143.87,143.86,0.033]
[1741284652706,29.28630991,143.87,143.86,0.17516157]
[1741284653004,36.23700991,143.87,143.86,0.17516157]
[1741284653213,36.23700991,143.87,143.86,0.033]
[1741284653925,29.28630991,143.87,143.86,0.17516157]
[1741284654110,29.28630991,143.89,143.86,0.17516157]
[1741284654304,6.9496,143.9,143.86,0.17516157]
[1741284654508,29.28630991,143.88,143.86,0.17516157]
[1741284655123,36.23650991,143.88,143.86,0.17516157]
[1741284655629,29.28630991,143.88,143.86,0.17516157]
[1741284655829,29.28630991,143.87,143.86,0.17516157]
[1741284657212,36.23700991,143.87,143.86,0.17516157]
[1741284657532,36.23700991,143.87,143.86,0.033]
[1741284658121,6.574,143.86,143.85,1.8671596]
[1741284658322,54.79428191,143.86,143.85,1.8671596]
[1741284658531,24.89628892,143.86,143.85,1.8671596]
[1741284659532,18.32228892,143.86,143.85,1.8671596]
[1741284660532,6.9499,143.89,143.86,0.14216157]
[1741284660707,18.32228892,143.87,143.86,0.14216157]
[1741284661149,14.37552957,143.9,143.86,0.14216157]
[1741284661440,18.35228892,143.91,143.86,89.19326157]
[1741284661935,18.32228892,143.89,143.86,82.24216157]
[1741284662123,18.32228892,143.9,143.86,82.24216157]
[1741284662318,6.9787,143.91,143.86,82.24216157]
[1741284662319,18.35228892,143.91,143.86,82.24216157]
[1741284662526,18.35228892,143.91,143.88,0.14216157]
[1741284662527,0.03,143.91,143.88,0.14216157]
[1741284663337,0.03,143.91,143.89,0.14216157]
[1741284663837,18.32228892,143.9,143.89,0.14216157]
[1741284664026,0.03,143.91,143.89,0.14216157]
[1741284665418,0.03,143.91,143.89,89.19146157]
[1741284666030,0.03,143.91,143.89,401.19146157]
[1741284666526,0.03,143.91,143.89,430.47169377]